[Event "Superbet Blitz Poland 2022"]
[Site "Warsaw"]
[Date "2022.05.23"]
[Round "15.4"]
[White "Caruana, Fabiano"]
[Black "Shevchenko, Kirill"]
[Result "0-1"]
[ECO "D12"]
[WhiteElo "2786"]
[BlackElo "2644"]
[Annotator "TA"]
[PlyCount "118"]
[EventDate "2022.05.22"]
[EventType "tourn"]
[EventCountry "POL"]
[SourceTitle "playchess.com"]
[Source "ChessBase"]
[SourceQuality "1"]
[TimeControl "300+2"]

{[%evp 11,118,27,32,23,22,17,27,20,25,21,20,10,17,27,35,6,18,12,29,31,31,35,36,25,32,28,27,35,28,0,57,48,40,47,64,32,52,33,35,35,106,26,20,16,112,105,113,134,134,134,169,169,184,179,236,156,177,176,179,156,350,307,436,435,470,445,616,592,479,0,-7,-7,0,-95,-100,-100,-8,-33,-31,-40,-34,-27,-19,-23,-32,-25,-16,-64,-20,-99,-67,-316,-318,-311,-310,-686,-671,-829,-805,-1033,-837,-29988,-29985,-29990,-29991,-29992,-29993,-29993,-29986]} 1. d4 {[%emt 0:00:01]} Nf6 {[%emt 0:00:01]} 2. c4 {[%emt 0:00:01]} c6 {[%emt 0:00:02]} 3. Nf3 {[%emt 0:00:03]} d5 {[%emt 0:00:01]} 4. e3 {[%emt 0:00:01]} Bf5 {[%emt 0:00:01]} 5. Nc3 {[%emt 0:00:02]} e6 {[%emt 0:00:04]} 6. Nh4 {[%emt 0:00:01]} Bg6 {[%emt 0:00:01]} 7. Be2 {[%emt 0:00:02] D12: Slav Defence: 3 Nf3 Nf6 4 e3 Bf5.} Nbd7 {[%emt 0:00:02]} 8. O-O {[%emt 0:00:03]} Bd6 {[%emt 0:00:02]} 9. g3 {[%emt 0:00:01] White has an edge.} O-O {[%emt 0:00:04]} 10. Nxg6 {[%emt 0:00:03]} hxg6 {[%emt 0:00:01]} 11. Qb3 {[%emt 0:00:07]} Rb8 {[%emt 0:00:12]} 12. Bd2 {[%emt 0:00:06]} Qe7 {[%emt 0:00:08]} 13. Rad1 {[%emt 0:00:23] [#]} Rfe8 $5 $146 {[%emt 0:00:28][%mdl 8] New and interesting.} ({Predecessor:} 13... a6 14. Bc1 dxc4 15. Qxc4 c5 {½-½ (15) Popov,V (2585)-Predojevic,B (2639) Rijeka 2010}) 14. Qc2 {[%emt 0:00:07]} a6 {[%emt 0:00:19]} 15. c5 {[%emt 0:00:11]} Bc7 {[%emt 0:00:01]} 16. f4 {[%emt 0:00:01]} Ba5 {[%emt 0:00:09]} 17. Nb1 {[%emt 0:00:14]} Bc7 {[%emt 0:00:42]} 18. Bd3 {[%emt 0:00:02] Prevents Ne4.} Ng4 {[%emt 0:00:48]} 19. b4 {[%emt 0:00:57]} f5 {[%emt 0:00:12]} 20. a4 {[%emt 0:00:01]} Kf7 {[%emt 0:00:46]} (20... g5 $11) 21. h3 {[%emt 0:00:15]} Ngf6 {[%emt 0:00:01][%cal Og6g5]} 22. b5 {[%emt 0:00:13]} axb5 {[%emt 0:00:08]} 23. axb5 {[%emt 0:00:01]} Rh8 {[%emt 0:00:00]} 24. Kg2 {[%emt 0:00:04]} (24. b6 Bd8) 24... Ne4 {[%emt 0:00:10]} 25. Bxe4 {[%emt 0:00:32]} fxe4 {[%emt 0:00:13]} (25... dxe4 $14 26. b6 Bd8) 26. b6 {[%emt 0:00:09]} (26. bxc6 $16 bxc6 27. Qa4) 26... Bd8 $11 {[%emt 0:00:01]} 27. Nc3 {[%emt 0:00:04]} Nf6 {[%emt 0:00:20]} (27... Kg8 $11) 28. Ra1 $36 {[%emt 0:00:05][%mdl 2048] White is in control.} Qd7 {[%emt 0:00:01][%cal Oe6e5]} 29. g4 {[%emt 0:00:06]} Be7 {[%emt 0:00:06][%cal Oe6e5] [#]} 30. Be1 $1 {[%emt 0:00:25]} Rh7 {[%emt 0:00:10]} 31. Bg3 {[%emt 0:00:15]} Rbh8 {[%emt 0:00:19]} 32. Rh1 {[%emt 0:00:01]} Ng8 {[%emt 0:00:26]} (32... Qc8 $142 33. Qe2 Qd8) 33. Qf2 {[%emt 0:00:41]} Nf6 {[%emt 0:00:05]} 34. Qe2 {[%emt 0:00:13]} Rf8 {[%emt 0:00:00]} 35. Nb1 {[%emt 0:00:07]} Kg8 $2 {[%emt 0:00:01]} (35... Rhh8 $16 36. Ra7 Nh7) 36. Nd2 $18 {[%emt 0:00:02]} Ne8 {[%emt 0:00:03]} (36... Qc8 $142 37. Nb3 Kf7) 37. g5 {[%emt 0:00:05]} e5 {[%emt 0:00:02]} 38. Qg4 {[%emt 0:00:09]} Qf5 {[%emt 0:00:03]} 39. Qxf5 {[%emt 0:00:01]} gxf5 {[%emt 0:00:01]} 40. dxe5 {[%emt 0:00:03]} ({White should try} 40. Ra7 $18) 40... Bxc5 $11 {[%emt 0:00:01]} 41. Bf2 {[%emt 0:00:03] aiming for Rhc1.} g6 {[%emt 0:00:02]} 42. Rhb1 {[%emt 0:00:05]} (42. Rhc1 $1 $11 {keeps the balance.} Bxb6 43. Rab1) 42... Ng7 $17 {[%emt 0:00:01][%cal Be8g7,Bg7e6,Be6f4,Bf4d3][%mdl 32]} 43. Nb3 {[%emt 0:00:09] [#]} Bxb6 {[%emt 0:00:01]} (43... Ne6 $1 $17) 44. Nd2 {[%emt 0:00:03]} Bc5 {[%emt 0:00:05]} 45. Rxb7 {[%emt 0:00:01]} Ne6 {[%emt 0:00:01] Prevents Rc7.} 46. Rxh7 Kxh7 47. Ra6 {[%emt 0:00:06]} d4 {[%emt 0:00:07]} 48. exd4 {[%emt 0:00:06]} Nxf4+ {[%emt 0:00:01]} 49. Kh2 {[%emt 0:00:04]} (49. Kf1 $1 $11 {is superior.} Bb4 50. Be3 Nxh3 51. Ra7+ Kh8 52. Ke2 (52. Kg2 $2 f4 $19)) 49... Bb4 {[%emt 0:00:01]} 50. Nf1 {[%emt 0:00:02]} (50. Nc4 $1 $11 {was the only way to keep the balance.}) 50... Nd3 {[%emt 0:00:01] Black is more active.} 51. Bh4 {[%emt 0:00:03]} (51. Bg1 $1 $15) 51... f4 $19 {[%emt 0:00:01][%cal Bf5f4,Bf4e3,Be3e2][%mdl 32]} 52. Rxc6 {[%emt 0:00:01]} e3 {[%emt 0:00:01] White must now prevent ...e2.} 53. Nxe3 {[%emt 0:00:03]} (53. Rc2) 53... fxe3 {[%emt 0:00:01]} 54. e6 {[%emt 0:00:02]} e2 {[%emt 0:00:00]} 55. Rc7+ {[%emt 0:00:01]} Kg8 {[%emt 0:00:01] ( -> ...Nf2)} 56. Rd7 {[%emt 0:00:02]} Be1 {[%emt 0:00:07] Black mates.} 57. Bxe1 {[%emt 0:00:04]} Nxe1 {[%emt 0:00:00]} 58. e7 {[%emt 0:00:02]} Nf3+ {[%emt 0:00:03]} 59. Kg2 {[%emt 0:00:01]} Re8 {[%emt 0:00:05] Black used his chance.  Weighted Error Value: White=0.62/Black=0.31} 0-1

[Event "Superbet Blitz Poland 2022"]
[Site "Warsaw"]
[Date "2022.05.23"]
[Round "15.5"]
[White "So, Wesley"]
[Black "Anand, Viswanathan"]
[Result "1/2-1/2"]
[ECO "E04"]
[WhiteElo "2766"]
[BlackElo "2751"]
[Annotator "TA"]
[PlyCount "51"]
[EventDate "2022.05.22"]
[EventType "tourn"]
[EventCountry "POL"]
[SourceTitle "playchess.com"]
[Source "ChessBase"]
[SourceQuality "1"]
[TimeControl "300+2"]

{[%evp 23,51,13,8,0,31,3,10,16,11,11,11,10,2,0,8,1,29,16,16,16,16,0,4,0,2,0,0,0,0,0]} 1. d4 {[%emt 0:00:01]} Nf6 {[%emt 0:00:01]} 2. c4 {[%emt 0:00:01]} e6 {[%emt 0:00:00]} 3. Nf3 {[%emt 0:00:02]} d5 {[%emt 0:00:01]} 4. g3 {[%emt 0:00:01]} dxc4 {[%emt 0:00:01]} 5. Bg2 {[%emt 0:00:00]} c5 {[%emt 0:00:01]} 6. O-O {[%emt 0:00:02]} Nc6 {[%emt 0:00:01]} 7. dxc5 {[%emt 0:00:01]} Qxd1 {[%emt 0:00:01]} 8. Rxd1 {[%emt 0:00:01]} Bxc5 {[%emt 0:00:01]} 9. Nbd2 {[%emt 0:00:01]} c3 {[%emt 0:00:01]} 10. bxc3 {[%emt 0:00:01]} O-O {[%emt 0:00:03]} 11. Nb3 {[%emt 0:00:01]} Be7 {[%emt 0:00:01]} 12. c4 {[%emt 0:00:01]} Bd7 {[%emt 0:00:01]} 13. Bb2 {[%emt 0:00:01] E04: Open Catalan: 5 Nf3.} Rfc8 {[%emt 0:00:01]} 14. Rac1 {[%emt 0:00:23] [#] Hoping for Bxf6.} Be8 {[%emt 0:00:02]} 15. Nfd4 {[%emt 0:00:12]} a5 {[%emt 0:00:26]} 16. Nxc6 {[%emt 0:00:45]} Bxc6 {[%emt 0:00:04] [#]} 17. Bxc6 $146 {[%emt 0:00:01]} ({Predecessor:} 17. Nd4 Bxg2 18. Kxg2 Rd8 19. Nb5 Rxd1 20. Rxd1 Rc8 21. Ba3 Bxa3 22. Nxa3 Ne4 23. Rb1 {½-½ (32) Howell,D (2646)-Fridman,D (2626) Warsaw 2021}) 17... Rxc6 {[%emt 0:00:05]} 18. Nd4 {[%emt 0:00:04]} Rcc8 {[%emt 0:00:15]} 19. Nb5 {[%emt 0:00:01]} a4 {[%emt 0:00:07]} 20. Bxf6 {[%emt 0:00:11]} Bxf6 {[%emt 0:00:06] The position is equal.} 21. Rd7 {[%emt 0:00:01]} b6 {[%emt 0:00:03]} 22. Rb7 {[%emt 0:00:21]} Rab8 {[%emt 0:00:15]} 23. Ra7 {[%emt 0:00:19]} Ra8 {[%emt 0:00:00]} 24. Rb7 {[%emt 0:00:13]} Rab8 {[%emt 0:00:01]} 25. Ra7 {[%emt 0:00:03]} Ra8 {[%emt 0:00:01]} 26. Rb7 {Not much happened in this game.  Weighted Error Value: White=0.04 (flawless) /Black=0.05 (flawless)} 1/2-1/2

[Event "Superbet Blitz Poland 2022"]
[Site "Warsaw"]
[Date "2022.05.23"]
[Round "16.1"]
[White "Aronian, Levon"]
[Black "So, Wesley"]
[Result "1-0"]
[ECO "C24"]
[WhiteElo "2765"]
[BlackElo "2766"]
[Annotator "TA"]
[PlyCount "45"]
[EventDate "2022.05.22"]
[EventType "tourn"]
[EventCountry "POL"]
[SourceTitle "playchess.com"]
[Source "ChessBase"]
[SourceQuality "1"]
[TimeControl "300+2"]

{[%evp 11,45,21,30,16,9,9,35,6,21,17,71,72,71,83,85,84,371,364,358,368,882,686,679,678,664,598,592,563,537,589,576,577,513,337,473,441]} 1. e4 {[%emt 0:00:02]} e5 {[%emt 0:00:01]} 2. Bc4 {[%emt 0:00:02]} Nf6 {[%emt 0:00:06]} 3. d3 {[%emt 0:00:01]} c6 {[%emt 0:00:04]} 4. Nf3 {[%emt 0:00:01]} Be7 {[%emt 0:00:01]} 5. O-O {[%emt 0:00:06]} d6 {[%emt 0:00:02]} 6. Re1 {[%emt 0:00:12]} O-O {[%emt 0:00:03]} 7. Nbd2 {[%emt 0:00:11] C24: Bishop's Opening: 2...Nf6.} Nbd7 {[%emt 0:00:02]} 8. a3 {[%emt 0:00:10]} d5 {[%emt 0:00:05]} 9. Ba2 {[%emt 0:00:03] White is slightly better.} Qc7 {[%emt 0:00:19] [#]} 10. d4 $5 $146 {[%emt 0:00:04][%mdl 8] New and interesting.} ({Predecessor:} 10. Nf1 dxe4 11. dxe4 Nc5 12. Ng3 Be6 13. b4 Bxa2 14. Rxa2 Na4 15. Qd3 a5 16. Qb3 {½-½ (71) Glavina,P (2477)-Llorente Zaro,A (2336) Spain 2006}) 10... dxe4 {[%emt 0:00:32]} (10... Bd6 $11) 11. Nxe4 $16 {[%emt 0:00:02]} exd4 {[%emt 0:00:07]} 12. Qxd4 {[%emt 0:00:16]} Nxe4 {[%emt 0:00:13]} 13. Qxe4 {[%emt 0:00:02]} ({Much worse is} 13. Rxe4 Bf6 14. Qb4 a5 $11) 13... Bf6 {[%emt 0:00:00][%mdl 8192] [#]} (13... Bd6 $16) 14. Bf4 $1 $18 {[%emt 0:00:03]} Qa5 {[%emt 0:00:34] [#]} 15. Bd6 $1 {[%emt 0:00:11]} Bxb2 $2 {[%emt 0:00:03]} (15... Nc5 16. Bxf7+ (16. Qe8 $2 Be6 $19) 16... Kxf7 17. Qxh7 Nd3) 16. Bxf8 {[%emt 0:00:09]} Nxf8 {[%emt 0:00:01]} 17. Qe8 {[%emt 0:00:14]} Qf5 {[%emt 0:00:14] [#]} 18. Re7 $1 {[%emt 0:00:24][%cal Ra2f7]} Be6 {[%emt 0:00:27]} 19. Qxa8 {[%emt 0:00:02]} Bxa1 {[%emt 0:00:01]} 20. Re8 {[%emt 0:00:25][%csl Ga8][%cal Re8f8]} Qc5 {[%emt 0:00:06]} 21. Bxe6 {[%emt 0:00:02]} fxe6 {[%emt 0:00:01]} 22. Qxb7 {[%emt 0:00:09]} Qxc2 {[%emt 0:00:06]} (22... Qxa3 {was necessary.} 23. Kh1 Qc1+ 24. Ng1 Qxc2 25. Qxa7 Bb2) 23. g3 {[%emt 0:00:04] Black did not feel at home in the position after the opening.  Weighted Error Value: White=0.32/Black=0.58} 1-0

[Event "Superbet Blitz Poland 2022"]
[Site "Warsaw"]
[Date "2022.05.23"]
[Round "16.2"]
[White "Anand, Viswanathan"]
[Black "Caruana, Fabiano"]
[Result "1/2-1/2"]
[ECO "B52"]
[WhiteElo "2751"]
[BlackElo "2786"]
[Annotator "TA"]
[PlyCount "152"]
[EventDate "2022.05.22"]
[EventType "tourn"]
[EventCountry "POL"]
[SourceTitle "playchess.com"]
[Source "ChessBase"]
[SourceQuality "1"]
[TimeControl "300+2"]

{[%evp 15,152,9,6,0,0,0,0,-2,41,41,41,52,50,46,62,61,60,59,85,98,105,56,56,55,83,0,76,73,79,73,65,70,87,76,83,67,86,35,45,27,44,34,75,74,66,65,74,73,73,60,64,62,138,168,164,157,159,142,145,56,64,0,0,0,0,0,0,0,0,0,0,0,0,0,0,0,864,611,5591,0,0,0,29972,29972,29975,29976,29973,0,22,36,36,36,36,36,36,36,38,36,36,36,36,36,36,36,36,36,36,36,36,36,36,36,36,36,36,36,36,36,36,36,36,36,36,36,36,0,36,36,36,36,36,36,36,0,36,0,36,36,36]} 1. e4 {[%emt 0:00:01]} c5 {[%emt 0:00:01]} 2. Nf3 {[%emt 0:00:01]} d6 {[%emt 0:00:01]} 3. Bb5+ {[%emt 0:00:02]} Bd7 {[%emt 0:00:05]} 4. Bxd7+ {[%emt 0:00:02]} Qxd7 {[%emt 0:00:01]} 5. O-O {[%emt 0:00:04]} Nc6 {[%emt 0:00:02]} 6. c3 {[%emt 0:00:03]} e6 {[%emt 0:00:21]} 7. d4 {[%emt 0:00:04]} d5 {[%emt 0:00:01]} 8. exd5 {[%emt 0:00:06]} Qxd5 {[%emt 0:00:01]} 9. dxc5 {[%emt 0:00:02] B52: Sicilian: Moscow Variation with 3...Bd7.} Qxd1 {[%emt 0:00:04]} 10. Rxd1 {[%emt 0:00:01]} Bxc5 {[%emt 0:00:02]} 11. Nbd2 {[%emt 0:00:15] [#] The position is equal.} O-O-O $146 {[%emt 0:00:10]} ({Predecessor:} 11... Nf6 12. Nc4 Nd5 13. Nce5 Nxe5 14. Nxe5 f6 15. Nd3 Bb6 16. Nf4 Nc7 17. b3 O-O 18. Ba3 Rfd8 19. Be7 Rxd1+ {½-½ (19) Vignesh,B (2370)-Petrov,N (2561) Arandjelovac 2022}) 12. b4 {[%emt 0:00:08]} Be7 {[%emt 0:00:14]} 13. Bb2 {[%emt 0:00:02]} Nf6 {[%emt 0:00:18]} 14. b5 {[%emt 0:00:24]} Nb8 {[%emt 0:00:12]} 15. c4 {[%emt 0:00:16]} Nbd7 {[%emt 0:00:09]} 16. Nb3 {[%emt 0:00:19]} Nc5 {[%emt 0:00:35]} 17. Bd4 {[%emt 0:00:12]} Na4 {[%emt 0:00:43]} 18. Ne5 {[%emt 0:00:11]} (18. Rdc1 $16) 18... Rhf8 $14 {[%emt 0:00:05]} 19. Bxa7 {[%emt 0:00:04]} Ne4 {[%emt 0:00:32]} 20. Be3 {[%emt 0:00:29]} (20. Rxd8+ $16 Kxd8 21. Rd1+ Kc8 22. Bd4) 20... Bf6 {[%emt 0:00:12]} (20... Rxd1+ $11 21. Rxd1 f6) 21. f4 $1 $16 {[%emt 0:00:01]} g5 {[%emt 0:00:19]} 22. Rxd8+ {[%emt 0:00:04]} Rxd8 {[%emt 0:00:04]} 23. Re1 {[%emt 0:00:05]} Bxe5 {[%emt 0:01:12]} 24. fxe5 {[%emt 0:00:03]} Rd3 {[%emt 0:00:01]} 25. Bd4 {[%emt 0:00:40]} Nec3 {[%emt 0:00:05]} 26. Bxc3 {[%emt 0:00:07]} (26. Re3 $1 $16 {[%cal Re3d3]} Rxe3 27. Bxe3) 26... Nxc3 {[%emt 0:00:02][%mdl 4096] Endgame KRN-KRN} 27. Rf1 {[%emt 0:00:09]} Ne2+ {[%emt 0:00:15]} 28. Kf2 {[%emt 0:00:04]} Nf4 {[%emt 0:00:03]} 29. g3 {[%emt 0:00:08]} Ng6 {[%emt 0:00:01]} 30. Ke2 $1 {[%emt 0:00:04][%csl LRd3,LRf7]} Rd7 {[%emt 0:00:02]} 31. Nc5 {[%emt 0:00:01]} Rc7 {[%emt 0:00:02]} 32. Nd3 {[%emt 0:00:01] Threatens to win with b6. White is more active.} Rxc4 {[%emt 0:00:04]} 33. Rxf7 {[%emt 0:00:02]} Nxe5 {[%emt 0:00:05]} 34. Nxe5 $14 {[%emt 0:00:05] KRN-KR} Re4+ {[%emt 0:00:00]} 35. Kf3 {[%emt 0:00:17]} Rxe5 {[%emt 0:00:01]} 36. Rxh7 {[%emt 0:00:04] aiming for a4.} Rxb5 $16 {[%emt 0:00:09] KR-KR} 37. Kg4 {[%emt 0:00:02]} ({Better is} 37. Rg7 $16) 37... Ra5 $14 {[%emt 0:00:00]} 38. Re7 {[%emt 0:00:06]} (38. a4 $1 $14) 38... Rxa2 $11 {[%emt 0:00:00]} 39. h3 {[%emt 0:00:05]} Ra5 {[%emt 0:00:01]} 40. Rxe6 {[%emt 0:00:02]} Rc5 {[%emt 0:00:00]} 41. h4 {[%emt 0:00:07]} gxh4 {[%emt 0:00:02]} 42. gxh4 {[%emt 0:00:00]} Kc7 {[%emt 0:00:04]} 43. h5 {[%emt 0:00:02]} b5 {[%emt 0:00:01]} 44. h6 {[%emt 0:00:01]} Rc1 {[%emt 0:00:01]} 45. Re4 {[%emt 0:00:06]} Rg1+ $2 {[%emt 0:00:05][%mdl 8192] [#]} (45... Kd6 $11) 46. Kh5 $1 $18 {[%emt 0:00:01] White threatens h7 and mate.} Rg8 {[%emt 0:00:02]} 47. h7 $2 {[%emt 0:00:01]} (47. Rg4 $18 Rh8 48. Rg6) 47... Rh8 $11 {[%emt 0:00:01]} 48. Kg6 {[%emt 0:00:01] Intending Re6 and mate.} Kc6 $2 {[%emt 0:00:00][%mdl 8192] [#]} (48... Kd6 $11) 49. Re5 $1 {[%emt 0:00:01]} Kb6 {[%emt 0:00:03]} 50. Kg7 {[%emt 0:00:01]} ({And not} 50. Re6+ Kc5 $11) 50... Rd8 {[%emt 0:00:02]} 51. h8=Q $2 {[%emt 0:00:03]} (51. Rh5 {mates} Rc8 52. h8=Q Rxh8 53. Rxh8 Kc5 54. Kf6 Kd5 55. Kf5 b4 56. Rb8) 51... Rxh8 {[%emt 0:00:01]} 52. Kxh8 {[%emt 0:00:01] KR-KP} Ka5 {[%emt 0:00:01]} 53. Kg7 {[%emt 0:00:02]} Ka4 {[%emt 0:00:01]} 54. Re8 {[%emt 0:00:01]} b4 {[%emt 0:00:01][%cal Bb5b4,Bb4b3,Bb3b2,Bb2b1,Bb1a3][%mdl 32]} 55. Kf6 {[%emt 0:00:01]} b3 {[%emt 0:00:02]} (55... Ka3 {is a self mate.} 56. Ke5 b3 57. Kd4 b2 58. Kc3 b1=N+ 59. Kc2 Kb4 60. Kxb1) 56. Rb8 {[%emt 0:00:04]} Ka3 {[%emt 0:00:01]} 57. Ke5 {[%emt 0:00:01]} Kb2 {[%emt 0:00:03]} 58. Kd4 {[%emt 0:00:05] Kd3 would kill now.} Kc2 {[%emt 0:00:01]} 59. Rc8+ {[%emt 0:00:04]} Kd2 $1 {[%emt 0:00:02]} 60. Rh8 {[%emt 0:00:01] White wants to mate with Rh2+.} b2 {[%emt 0:00:00]} 61. Rh2+ {[%emt 0:00:01]} Kc1 {[%emt 0:00:03]} 62. Kc3 {[%emt 0:00:01][%cal Rh2h1]} b1=N+ $14 {[%emt 0:00:02] KR-KN} 63. Kd3 {[%emt 0:00:01]} Na3 {[%emt 0:00:01]} 64. Ra2 {[%emt 0:00:02]} Nb1 $1 {[%emt 0:00:06]} 65. Rc2+ {[%emt 0:00:02]} Kd1 {[%emt 0:00:01]} 66. Rc7 {[%emt 0:00:02]} Na3 {[%emt 0:00:06]} 67. Rc3 {[%emt 0:00:02]} Nb1 $1 {[%emt 0:00:02]} 68. Rc5 {[%emt 0:00:02]} Na3 {[%emt 0:00:01]} 69. Kc3 {[%emt 0:00:05] Threatening mate with Kb2.} Nb1+ {[%emt 0:00:03]} 70. Kd3 {[%emt 0:00:05]} Na3 {[%emt 0:00:01]} 71. Rc8 {[%emt 0:00:03]} Nb1 {[%emt 0:00:01]} 72. Rc2 {[%emt 0:00:13]} Na3 {[%emt 0:00:02]} 73. Rb2 {[%emt 0:00:05]} Kc1 {[%emt 0:00:01]} 74. Ra2 {[%emt 0:00:01]} Nb1 $1 {[%emt 0:00:03]} 75. Rc2+ {[%emt 0:00:15]} Kd1 {[%emt 0:00:01]} 76. Rh2 {[%emt 0:00:03][%cal Rh2h1]} Kc1 {[%emt 0:00:01] Weighted Error Value: White=0.29 (precise) /Black=0.24 (precise)} 1/2-1/2

[Event "Superbet Blitz Poland 2022"]
[Site "Warsaw"]
[Date "2022.05.23"]
[Round "16.3"]
[White "Shevchenko, Kirill"]
[Black "Rapport, Richard"]
[Result "0-1"]
[ECO "B22"]
[WhiteElo "2644"]
[BlackElo "2776"]
[Annotator "TA"]
[PlyCount "90"]
[EventDate "2022.05.22"]
[EventType "tourn"]
[EventCountry "POL"]
[SourceTitle "playchess.com"]
[Source "ChessBase"]
[SourceQuality "1"]
[TimeControl "300+2"]

{[%evp 9,90,14,14,7,8,5,22,16,20,10,21,29,22,19,11,7,7,6,16,12,12,13,36,0,0,0,54,-8,0,-22,-25,-22,14,0,0,-4,-3,-23,0,-55,-49,-52,-31,-90,-22,-33,-27,-39,-26,-62,-34,-52,-52,-101,-98,-195,-154,-169,-172,-238,-234,-236,0,-287,-192,-180,-185,-181,-179,-261,-266,-279,-171,-183,-175,-702,-700,-657,-657,-738,-734,-706,-640]} 1. e4 {[%emt 0:00:02]} c5 {[%emt 0:00:03]} 2. c3 {[%emt 0:00:06]} Qa5 {[%emt 0:00:24]} 3. Nf3 {[%emt 0:00:06]} d6 {[%emt 0:00:01]} 4. Na3 {[%emt 0:00:38]} Nf6 {[%emt 0:00:07]} 5. Nc4 {[%emt 0:00:07]} Qc7 $1 {[%emt 0:00:02]} 6. e5 {[%emt 0:00:10] B22: Sicilian: 2 c3.} dxe5 {[%emt 0:00:01]} 7. Ncxe5 {[%emt 0:00:01]} (7. Nfxe5 $2 b5 8. d4 bxc4 $17) 7... Nbd7 {[%emt 0:00:10]} 8. d4 {[%emt 0:00:16] Bc4 is the strong threat. The position is equal.} e6 {[%emt 0:00:04]} 9. Bd3 {[%emt 0:00:31]} Bd6 {[%emt 0:00:13]} 10. Qe2 {[%emt 0:00:37][%cal Oe5f7]} O-O {[%emt 0:00:07]} 11. O-O {[%emt 0:00:01]} b6 {[%emt 0:00:07] [#]} 12. Bf4 $146 {[%emt 0:00:54]} ({Predecessor:} 12. Re1 h6 13. h4 Bb7 14. Ng5 hxg5 15. hxg5 Bxe5 16. dxe5 Qc6 17. f4 Nh5 18. Kh2 g6 19. g4 Ng7 20. Kg3 Rfd8 21. Be4 Qxe4 22. Qxe4 Bxe4 23. Rxe4 Kf8 {0-1 (23) Wohlfahrt,H-Siepelt,H Dornbirn 1988}) 12... Bb7 {[%emt 0:00:05]} 13. Rfe1 {[%emt 0:00:01]} Nd5 {[%emt 0:00:20]} 14. Bg3 {[%emt 0:00:06]} (14. Qe4 $2 N7f6 15. Qe2 Nxf4 $19) 14... cxd4 $1 {[%emt 0:00:02]} 15. cxd4 {[%emt 0:00:04][%cal Od3h7]} N7f6 {[%emt 0:00:09]} 16. Rac1 {[%emt 0:00:04]} Qe7 {[%emt 0:00:02]} 17. a3 {[%emt 0:00:24]} Rac8 {[%emt 0:00:07]} (17... h6 $11) 18. Rcd1 {[%emt 0:00:01]} (18. Rxc8 $1 $14 Bxc8 19. Nc6) 18... h6 {[%emt 0:00:12]} 19. Bb1 {[%emt 0:00:03]} Rfd8 {[%emt 0:00:34]} 20. Qd3 {[%emt 0:00:05]} Qc7 {[%emt 0:00:11]} 21. h3 {[%emt 0:00:25]} a6 {[%emt 0:00:51]} 22. Qd2 {[%emt 0:00:02]} b5 {[%emt 0:00:08][%cal Bb6b5,Bb5b4][%mdl 32]} 23. Bh4 {[%emt 0:00:02]} b4 {[%emt 0:00:05]} 24. Rc1 {[%emt 0:00:22]} ({Better is} 24. Ng4 $11 Be7 25. Bxf6 Bxf6 26. axb4) 24... Qe7 $15 {[%emt 0:00:02]} 25. Rxc8 {[%emt 0:00:02]} Rxc8 {[%emt 0:00:01]} 26. Qd3 {[%emt 0:00:01]} (26. a4 $15) 26... Qd8 {[%emt 0:00:18]} (26... bxa3 $17 27. bxa3 Bxa3) 27. axb4 $11 {[%emt 0:00:16]} ({Wrong is} 27. Nxf7 $2 Kxf7 28. Qg6+ Kf8 $19) 27... Bxb4 {[%emt 0:00:01]} 28. Rd1 {[%emt 0:00:03]} ({Don't blunder} 28. Nxf7 $2 Kxf7 29. Qg6+ Kf8 30. Rxe6 Rc1+ 31. Kh2 Bc8 32. Bxf6 Nxf6 $19) 28... Be7 {[%emt 0:00:03]} 29. Re1 {[%emt 0:00:02]} Nb4 {[%emt 0:00:04]} 30. Qd2 {[%emt 0:00:05] Hoping for Bxf6.} a5 {[%emt 0:00:03]} 31. b3 {[%emt 0:00:13]} (31. Qe3 $15 Bd6 32. Bxf6 (32. Nxf7 Kxf7 33. Qxe6+ Kf8 $11) 32... Qxf6 33. Be4) 31... Nbd5 $17 {[%emt 0:00:02]} 32. Qd3 {[%emt 0:00:03]} (32. Bxf6 $17 Nxf6 33. Rc1) 32... Rc3 {[%emt 0:01:27]} 33. Qb5 Qb6 {[%emt 0:00:00]} 34. Qe2 {[%emt 0:00:08]} (34. Qxb6 $142 Nxb6 35. Re3) 34... Rxb3 $19 {[%emt 0:00:04]} 35. Bc2 {[%emt 0:00:05]} Rb2 $2 {[%emt 0:00:00]} (35... Rc3 $19 {White must now prevent ...Bb4.} 36. Rb1 Qc7) 36. Qd1 $2 {[%emt 0:00:04][%mdl 8192]} (36. Nc4 $11 Ba6 37. Nxb6 Bxe2 38. Nxd5 Rxc2 39. Nxe7+ Kf8 40. Bxf6 gxf6 41. Nf5) 36... Bb4 {[%emt 0:00:00]} 37. Nc4 {[%emt 0:00:01] [#]} Qb5 {[%emt 0:00:00]} 38. Nxb2 {[%emt 0:00:03] And now Rf1 would win.} Bxe1 {[%emt 0:00:00]} 39. Nd3 {[%emt 0:00:03]} (39. Na4 $142 Bb4 40. Bd3) 39... Bb4 {[%emt 0:00:00]} 40. Nfe5 {[%emt 0:00:00]} Be7 {[%emt 0:00:12]} 41. Ba4 Qb6 {[%emt 0:00:00]} 42. Nf3 {[%emt 0:00:05]} (42. Bxf6 Nxf6 43. Qa1) 42... Nc3 {[%emt 0:00:00] Black is clearly winning.} 43. Qc2 {[%emt 0:00:01]} Nxa4 {[%emt 0:00:00]} 44. Qxa4 {[%emt 0:00:01]} Bxf3 {[%emt 0:00:00]} 45. gxf3 {[%emt 0:00:04]} Qb1+ {[%emt 0:00:00] Weighted Error Value: White=0.51/Black=0.19 (very precise)} 0-1